{"text_format":"1","workbook":"xlsx","n_sheets":2,"sheets":["TENDER PACK 1 STORAGE","DC1"],"not_rendered":{"charts":0,"images":1,"macros":1,"external_links":0,"defined_names":0,"comments":1,"pivot_tables":0},"unopened":[],"bounds":{"document_bytes":16777216,"sheet_cells":100000,"rows_first":2000,"rows_last":500,"rows_between":2000,"halvings":0,"cell_chars":16384,"cell_head_chars":4096},"cells_cut":0,"cells_raw":0,"read":"whole","date_system":"1900"}

{"sheet":"TENDER PACK 1 STORAGE","index":0,"n_rows":242,"n_cols":17,"rows_kept":242,"cut":false,"hidden":false,"merged":[[134,2,135,2],[134,3,135,6],[134,7,135,12],[134,13,135,14],[142,3,143,6],[142,7,143,14],[145,3,145,14],[147,3,147,14],[149,2,150,2],[149,3,150,6],[149,7,150,12],[140,2,141,2],[168,3,168,4],[168,5,168,7],[168,8,168,10],[168,11,168,12],[168,13,168,14],[124,3,125,14],[127,3,127,14],[116,3,118,6],[116,7,117,14],[149,13,150,14],[136,3,139,6],[136,7,139,12],[136,13,139,14],[140,3,141,6],[140,7,141,14],[87,2,88,2],[90,2,92,2],[97,2,98,2],[101,2,102,2],[111,2,112,2],[119,2,120,2],[94,3,94,6],[94,7,94,14],[95,3,95,6],[95,7,95,14],[100,3,100,6],[100,7,100,14],[101,3,102,6],[101,7,102,14],[104,3,104,14],[106,3,107,14],[96,3,96,6],[119,3,120,6],[119,7,120,14],[109,3,109,14],[111,3,112,6],[111,7,112,14],[113,3,115,6],[113,7,115,14],[2,3,6,14],[3,16,5,17],[8,3,10,14],[12,3,13,14],[15,3,21,14],[17,16,20,17],[43,3,47,14],[43,16,45,17],[49,3,61,14],[53,16,55,17],[82,3,83,14],[85,3,85,14],[23,3,23,14],[23,16,24,17],[24,3,24,14],[26,3,38,14],[27,16,29,17],[42,3,42,14],[93,3,93,6],[93,7,93,14],[87,3,88,6],[87,7,88,14],[89,3,89,6],[89,7,89,14],[90,3,92,6],[90,7,92,14],[96,7,96,14],[97,3,98,6],[97,7,98,14],[99,3,99,6],[99,7,99,14],[132,2,133,2],[132,3,133,6],[132,7,133,12],[132,13,133,14],[129,2,130,2],[129,3,131,6],[129,7,131,12],[129,13,131,14],[113,2,114,2],[116,2,117,2],[155,2,156,2],[155,3,156,6],[155,7,156,12],[155,13,156,14],[142,2,143,2],[136,2,139,2],[164,3,165,14],[167,3,167,14],[151,2,152,2],[151,3,152,6],[151,7,152,12],[151,13,152,14],[153,2,154,2],[153,3,154,6],[153,7,154,12],[153,13,154,14],[169,3,173,4],[169,5,173,7],[169,8,173,10],[169,11,173,12],[169,13,173,14],[174,3,175,4],[174,5,175,7],[174,8,175,10],[174,11,175,12],[174,13,175,14],[176,3,177,4],[176,5,177,7],[176,8,177,10],[176,11,177,12],[176,13,177,14],[178,3,179,4],[178,5,179,7],[178,8,179,10],[178,11,179,12],[178,13,179,14],[194,11,195,12],[194,13,195,14],[186,13,187,14],[180,3,181,4],[180,5,181,7],[180,8,181,10],[180,11,181,12],[180,13,181,14],[182,3,183,4],[182,5,183,7],[182,8,183,10],[182,11,183,12],[182,13,183,14],[184,3,185,4],[184,5,185,7],[184,8,185,10],[184,11,185,12],[184,13,185,14],[186,3,187,4],[186,5,187,7],[186,8,187,10],[186,11,187,12],[204,3,205,14],[207,3,207,14],[211,9,211,14],[211,3,211,8],[209,3,209,14],[210,3,210,14],[188,3,189,4],[188,5,189,7],[188,8,189,10],[188,11,189,12],[188,13,189,14],[190,3,191,4],[190,5,191,7],[190,8,191,10],[190,11,191,12],[190,13,191,14],[192,3,193,4],[192,5,193,7],[192,8,193,10],[192,11,193,12],[192,13,193,14],[194,3,195,4],[194,5,195,7],[194,8,195,10]]}
[]
[]
[null,null,null,"\nTENDER PACK 1\nOPERATING MARGINS\n2021/22 GAS CAPACITY TENDER (STORAGE)"]
[]
[]
[]
[]
[]
[null,null,null,"This tender pack is designed for;\n• Gas Storage Facility Operators\n• Capacity Holders at Gas Storage Facilities"]
[]
[]
[]
[null,null,null,"Issued 02 December 2020"]
[]
[]
[null,null,null,"Produced by National Grid Gas Transmission\nNational Grid Gas plc\nNational Grid House\nWarwick Technology Park\nGallows Hill\nWarwick\nCV34 6DA"]
[]
[]
[]
[]
[]
[]
[]
[null,null,null,"Website:"]
[null,null,null,"https://www.nationalgrid.com/uk/gas-transmission/balancing/operating-margins-om"]
[]
[null,null,null,"PLEASE NOTE:\nThis document should be read in conjunction with the template Operating Margins agreements (found on the Operating Margins Homepage) and the document entitled \"Tender Guidance Document 2021/22\".\n\nSpecific guidance on how to complete these tender sheets is provided in Sections 7 & 8 of the Operating Margins Tender Guidance Document with specific cross-references to these tender sheets via superscript numbers adjacent to the relevant fields of information. Please also refer to Section 6 \"Requirements of the Tender Process\" in order to understand what must accompany the tender sheets as part of submission in order that assessment can proceed on any tenders received.\n\nTerms and phrases used in this document have the meanings set out or referred to in the template Operating Margins agreements and/or the Operating Margins Tender Guidance Document."]
[]
[]
[]
[]
[]
[]
[]
[]
[]
[]
[]
[]
[null,null,null,null,null,null,null,null,null,null,null,null,null,null,null,null,"Page 1"]
[]
[]
[null,null,null,"IMPORTANT - PLEASE NOTE:"]
[null,null,null,"• All parts of this tender pack must be completed by all tenderers and submitted to be eligible for assessment.\n• A provider can submit up to three tender packs per facility with mutually exclusive volumes and associated tranches."]
[]
[]
[]
[]
[]
[null,null,null,"Completed Tenders should be submitted by 13:00 hours (GMT) on Monday 18 January 2021 via Ariba.\n\nThe completed Tender Packs should each be uploaded under unique file names (simply add a submission number to the end of the file name).\nAfter uploading Tender Pack documents, terms and conditions must be accepted before submitting.\nSubmissions can be revised until the deadline."]
[]
[]
[]
[]
[]
[]
[]
[]
[]
[]
[]
[]
[]
[]
[]
[]
[]
[]
[]
[]
[]
[]
[]
[]
[]
[]
[]
[]
[]
[null,null,null,null,null,null,null,null,null,null,null,null,null,null,null,null,"Page 2"]
[]
[]
[null,null,null,"2021/22 OM CAPACITY TENDER"]
[]
[]
[null,null,null,"Part 1: Tenderer Details"]
[]
[null,null,1,"Tenderer's Company Name\n(including company number)"]
[]
[null,null,2,"Company Representative, Job Title"]
[null,null,3,"Company Representative Address\n(full address including postcode)"]
[]
[]
[null,null,4,"Telephone Number"]
[null,null,5,"Facsimile Number"]
[null,null,6,"Email Address"]
[null,null,7,"Legal Agent Name"]
[null,null,8,"Legal Agent Address"]
[]
[null,null,9,"Shipper Short Code"]
[null,null,10,"Achilles Registration Number"]
[null,null,11,"Type of Credit Security Provided",null,null,null,null,null,null,null,null,null,null,null,null,2]
[]
[]
[null,null,null,"Part 2"]
[]
[null,null,null,"[See OM Tenderers Contract Response Form if such amendments are proposed]\nIf no amendments are proposed please go to Part 3"]
[]
[]
[null,null,null,"Part 3: Facility Details"]
[]
[null,null,12,"Facility Name\n(including company number if different)"]
[]
[null,null,13,"Facility Location\n(full address including postcode)"]
[]
[]
[null,null,14,"Service Provision Category",null,null,null,null,null,null,null,null,null,null,null,null,2]
[]
[]
[null,null,15,"Execution Date For Tenderer’s Agreement With Facility Operator"]
[]
[null,null,null,null,null,null,null,null,null,null,null,null,null,null,null,null,"Page 3"]
[]
[]
[null,null,null,"2021/22 OM CAPACITY TENDER"]
[]
[]
[null,null,null,"Part 4: Deliverability & Availability"]
[]
[null,null,"15A","Storage Withdrawal Capacity (Tendered) \n(minimum requirement is 500,000 kWh/hour)",null,null,null,null,null,null,null,null,null,"kWh/Day"]
[]
[]
[null,null,16,"Withdrawal Response Time",null,null,null,null,null,null,null,null,null,"Minutes"]
[]
[null,null,17,"Injection Response Time",null,null,null,null,null,null,null,null,null,"As defined by tenderer"]
[]
[null,null,18,"Planned Maintenance Periods",null,null,null,null,null,null,null,null,null,"Dates"]
[]
[]
[]
[null,null,19,"Website for Service Availability / Unavailability"]
[]
[null,null,20,"Allocation Agent                                                                  (Name, Address, Tel No)"]
[]
[]
[null,null,null,"Part 5: Charges & Capacity"]
[]
[null,null,null,"Where charges are to be levied for the provision / use of this service, these must be quantified below"]
[]
[null,null,21,"Injection Amount\n(optional)",null,null,null,null,null,null,null,null,null,"p/kWh"]
[]
[null,null,22,"Withdrawal Amount\n(optional)",null,null,null,null,null,null,null,null,null,"p/kWh"]
[]
[null,null,23,"Injection Overrun Amount \n(optional)",null,null,null,null,null,null,null,null,null,"p/kWh"]
[]
[null,null,24,"Withdrawal Overrun Amount\n(optional)",null,null,null,null,null,null,null,null,null,"p/kWh"]
[]
[]
[]
[]
[]
[null,null,null,null,null,null,null,null,null,null,null,null,null,null,null,null,"Page 4"]
[]
[]
[null,null,null,"2021/22 OM CAPACITY TENDER"]
[]
[]
[null,null,null,"Part 5: Charges & Capacity (Continued)"]
[null,null,null,25,null,26,null,null,27,null,null,28,null,29]
[null,null,null,"Capacity Procurement Tranche Number",null,"Storage Space (in kWh)",null,null,"Storage Injection Capacity (in kWh per day)",null,null,"Annual Service Fee (in pence per kWh per annum)",null,"Tranche may only be accepted in full (YES / NO)"]
[]
[]
[]
[]
[null,null,null,1,null,null,null,null,null,null,null,null,null,null,null,null,false]
[]
[null,null,null,2,null,null,null,null,null,null,null,null,null,null,null,null,false]
[]
[null,null,null,3,null,null,null,null,null,null,null,null,null,null,null,null,false]
[]
[null,null,null,4,null,null,null,null,null,null,null,null,null,null,null,null,false]
[]
[null,null,null,5,null,null,null,null,null,null,null,null,null,null,null,null,false]
[]
[null,null,null,6,null,null,null,null,null,null,null,null,null,null,null,null,false]
[]
[null,null,null,7,null,null,null,null,null,null,null,null,null,null,null,null,false]
[]
[null,null,null,8,null,null,null,null,null,null,null,null,null,null,null,null,false]
[]
[null,null,null,9,null,null,null,null,null,null,null,null,null,null,null,null,false]
[]
[null,null,null,10,null,null,null,null,null,null,null,null,null,null,null,null,false]
[]
[null,null,null,"Total"]
[]
[]
[]
[]
[]
[]
[null,null,null,null,null,null,null,null,null,null,null,null,null,null,null,null,"Page 5"]
[]
[]
[null,null,null,"2021/22 OM CAPACITY TENDER\n"]
[]
[]
[null,null,null,"Part 6: Facility Withdrawal Capacity (Nominal) (Tender Pack 1)"]
[]
[null,null,30,"Facility Withdrawal Capacity (Nominal)"]
[null,null,null,"Please use the below space to describe the deliverability at different stock levels"]
[null,null,null,"Stock Level (kWh)",null,null,null,null,null,"Total Physical Site deliverability kWh/d"]
[]
[]
[]
[]
[]
[]
[]
[]
[]
[]
[]
[]
[]
[]
[]
[]
[]
[]
[]
[]
[]
[]
[]
[]
[]
[]
[]
[]
[]
[null,null,null,null,null,null,null,null,null,null,null,null,null,null,null,null,"Page 6"]

{"sheet":"DC1","index":1,"n_rows":13,"n_cols":36,"rows_kept":13,"cut":false,"hidden":true,"merged":[[0,2,1,9]]}
[null,null,"Data Collection Tab for Contracts Team"]
[]
["Tender Pack","Tender Ref","Tranche Ref","Main Ref","Tenderer's Company Name","Company Representative","Company Representative Address","Telephone Number","Facsimile Number","E-Mail Address","Legal Agent Name","Legal Agent Address","Shipper Short Code","Achilles Registration Number","Type of credit security provided",null,"Facility Name","Facility Location","Service Provision Category","Execution Date for Tenderer's Agreement With Facility Operator","Storage Withdrawal Capacity, kWh/Day","Withdrawal Response Time, Minutes","Injection Response Time, Minutes","Planned Maintenenace Periods, Dates","Website for Clauses","Allocation Agent","Injection Charge (Optional), p/kWh","Withdrawal Charge (Optional), p/kWh","Injection Overrun Charge (Optional), p/kWh","Withdrawal Overrun Charge (Optional), p/kWh","Capacity Procurement Tranche Number","Storage Space, kWh","Storage Injection Capacity, kWh / day","Annual Service Fee, p/kWh pa","Please tick if the tranche may only be accepted in full","Has Facility Withdrawal Capacity been entered?"]
[null,null,null,{"$f":"A4&\".\"&B4&\".\"&C4","v":".."},{"$f":"'TENDER PACK 1 STORAGE'!$H$88","v":0},{"$f":"'TENDER PACK 1 STORAGE'!$H$90","v":0},{"$f":"'TENDER PACK 1 STORAGE'!$H$91","v":0},{"$f":"'TENDER PACK 1 STORAGE'!$H$94","v":0},{"$f":"'TENDER PACK 1 STORAGE'!$H$95","v":0},{"$f":"'TENDER PACK 1 STORAGE'!$H$96","v":0},{"$f":"'TENDER PACK 1 STORAGE'!$H$97","v":0},{"$f":"'TENDER PACK 1 STORAGE'!$H$98","v":0},{"$f":"'TENDER PACK 1 STORAGE'!$H$100","v":0},{"$f":"'TENDER PACK 1 STORAGE'!$H$101","v":0},{"$f":"IF('TENDER PACK 1 STORAGE'!$Q$102=2,\"Parent Company Guarantee\",IF('TENDER PACK 1 STORAGE'!$Q$102=3,\"Letter of Credit\",IF('TENDER PACK 1 STORAGE'!$Q$102=1,\"Meets Requirements\",\"UNCHECKED\")))","v":"Parent Company Guarantee"},null,{"$f":"'TENDER PACK 1 STORAGE'!$H$112","v":0},{"$f":"'TENDER PACK 1 STORAGE'!$H$114","v":0},{"$f":"IF('TENDER PACK 1 STORAGE'!$Q$117=1,\"STORAGE OPERATOR\",IF('TENDER PACK 1 STORAGE'!$Q$117=2,\"Primary Capacity Holder of Storage\",\"UNCHECKED\"))","v":"Primary Capacity Holder of Storage"},{"$f":"'TENDER PACK 1 STORAGE'!$H$120","v":0},{"$f":"'TENDER PACK 1 STORAGE'!$H$130","v":0},{"$f":"'TENDER PACK 1 STORAGE'!$H$133","v":0},{"$f":"'TENDER PACK 1 STORAGE'!$H$135","v":0},{"$f":"'TENDER PACK 1 STORAGE'!$H$137","v":0},{"$f":"'TENDER PACK 1 STORAGE'!$H$141","v":0},{"$f":"'TENDER PACK 1 STORAGE'!$H$143","v":0},{"$f":"'TENDER PACK 1 STORAGE'!$H$150","v":0},{"$f":"'TENDER PACK 1 STORAGE'!$H$152","v":0},{"$f":"'TENDER PACK 1 STORAGE'!$H$154","v":0},{"$f":"'TENDER PACK 1 STORAGE'!$H$156","v":0},{"$f":"'TENDER PACK 1 STORAGE'!$D$175","v":1},{"$f":"'TENDER PACK 1 STORAGE'!$F$175","v":0},{"$f":"'TENDER PACK 1 STORAGE'!$I$175","v":0},{"$f":"'TENDER PACK 1 STORAGE'!$L$175","v":0},{"$f":"'TENDER PACK 1 STORAGE'!$N$175","v":0}]
[null,null,null,"..",{"$f":"'TENDER PACK 1 STORAGE'!$H$88","v":0},{"$f":"'TENDER PACK 1 STORAGE'!$H$90","v":0},{"$f":"'TENDER PACK 1 STORAGE'!$H$91","v":0},{"$f":"'TENDER PACK 1 STORAGE'!$H$94","v":0},{"$f":"'TENDER PACK 1 STORAGE'!$H$95","v":0},{"$f":"'TENDER PACK 1 STORAGE'!$H$96","v":0},{"$f":"'TENDER PACK 1 STORAGE'!$H$97","v":0},{"$f":"'TENDER PACK 1 STORAGE'!$H$98","v":0},{"$f":"'TENDER PACK 1 STORAGE'!$H$100","v":0},{"$f":"'TENDER PACK 1 STORAGE'!$H$101","v":0},{"$f":"IF('TENDER PACK 1 STORAGE'!$Q$102=2,\"Parent Company Guarantee\",IF('TENDER PACK 1 STORAGE'!$Q$102=3,\"Letter of Credit\",IF('TENDER PACK 1 STORAGE'!$Q$102=1,\"Meets Requirements\",\"UNCHECKED\")))","v":"Parent Company Guarantee"},null,{"$f":"'TENDER PACK 1 STORAGE'!$H$112","v":0},{"$f":"'TENDER PACK 1 STORAGE'!$H$114","v":0},{"$f":"IF('TENDER PACK 1 STORAGE'!$Q$117=1,\"STORAGE OPERATOR\",IF('TENDER PACK 1 STORAGE'!$Q$117=2,\"Primary Capacity Holder of Storage\",\"UNCHECKED\"))","v":"Primary Capacity Holder of Storage"},{"$f":"'TENDER PACK 1 STORAGE'!$H$120","v":0},{"$f":"'TENDER PACK 1 STORAGE'!$H$130","v":0},{"$f":"'TENDER PACK 1 STORAGE'!$H$133","v":0},{"$f":"'TENDER PACK 1 STORAGE'!$H$135","v":0},{"$f":"'TENDER PACK 1 STORAGE'!$H$137","v":0},{"$f":"'TENDER PACK 1 STORAGE'!$H$141","v":0},{"$f":"'TENDER PACK 1 STORAGE'!$H$143","v":0},{"$f":"'TENDER PACK 1 STORAGE'!$H$150","v":0},{"$f":"'TENDER PACK 1 STORAGE'!$H$152","v":0},{"$f":"'TENDER PACK 1 STORAGE'!$H$154","v":0},{"$f":"'TENDER PACK 1 STORAGE'!$H$156","v":0},{"$f":"'TENDER PACK 1 STORAGE'!$D$177","v":2},{"$f":"'TENDER PACK 1 STORAGE'!$F$177","v":0},{"$f":"'TENDER PACK 1 STORAGE'!$I$177","v":0},{"$f":"'TENDER PACK 1 STORAGE'!$L$177","v":0},{"$f":"'TENDER PACK 1 STORAGE'!$N$177","v":0}]
[null,null,null,"..",{"$f":"'TENDER PACK 1 STORAGE'!$H$88","v":0},{"$f":"'TENDER PACK 1 STORAGE'!$H$90","v":0},{"$f":"'TENDER PACK 1 STORAGE'!$H$91","v":0},{"$f":"'TENDER PACK 1 STORAGE'!$H$94","v":0},{"$f":"'TENDER PACK 1 STORAGE'!$H$95","v":0},{"$f":"'TENDER PACK 1 STORAGE'!$H$96","v":0},{"$f":"'TENDER PACK 1 STORAGE'!$H$97","v":0},{"$f":"'TENDER PACK 1 STORAGE'!$H$98","v":0},{"$f":"'TENDER PACK 1 STORAGE'!$H$100","v":0},{"$f":"'TENDER PACK 1 STORAGE'!$H$101","v":0},{"$f":"IF('TENDER PACK 1 STORAGE'!$Q$102=2,\"Parent Company Guarantee\",IF('TENDER PACK 1 STORAGE'!$Q$102=3,\"Letter of Credit\",IF('TENDER PACK 1 STORAGE'!$Q$102=1,\"Meets Requirements\",\"UNCHECKED\")))","v":"Parent Company Guarantee"},null,{"$f":"'TENDER PACK 1 STORAGE'!$H$112","v":0},{"$f":"'TENDER PACK 1 STORAGE'!$H$114","v":0},{"$f":"IF('TENDER PACK 1 STORAGE'!$Q$117=1,\"STORAGE OPERATOR\",IF('TENDER PACK 1 STORAGE'!$Q$117=2,\"Primary Capacity Holder of Storage\",\"UNCHECKED\"))","v":"Primary Capacity Holder of Storage"},{"$f":"'TENDER PACK 1 STORAGE'!$H$120","v":0},{"$f":"'TENDER PACK 1 STORAGE'!$H$130","v":0},{"$f":"'TENDER PACK 1 STORAGE'!$H$133","v":0},{"$f":"'TENDER PACK 1 STORAGE'!$H$135","v":0},{"$f":"'TENDER PACK 1 STORAGE'!$H$137","v":0},{"$f":"'TENDER PACK 1 STORAGE'!$H$141","v":0},{"$f":"'TENDER PACK 1 STORAGE'!$H$143","v":0},{"$f":"'TENDER PACK 1 STORAGE'!$H$150","v":0},{"$f":"'TENDER PACK 1 STORAGE'!$H$152","v":0},{"$f":"'TENDER PACK 1 STORAGE'!$H$154","v":0},{"$f":"'TENDER PACK 1 STORAGE'!$H$156","v":0},{"$f":"'TENDER PACK 1 STORAGE'!$D$179","v":3},{"$f":"'TENDER PACK 1 STORAGE'!$F$179","v":0},{"$f":"'TENDER PACK 1 STORAGE'!$I$179","v":0},{"$f":"'TENDER PACK 1 STORAGE'!$L$179","v":0},{"$f":"'TENDER PACK 1 STORAGE'!$N$179","v":0}]
[null,null,null,"..",{"$f":"'TENDER PACK 1 STORAGE'!$H$88","v":0},{"$f":"'TENDER PACK 1 STORAGE'!$H$90","v":0},{"$f":"'TENDER PACK 1 STORAGE'!$H$91","v":0},{"$f":"'TENDER PACK 1 STORAGE'!$H$94","v":0},{"$f":"'TENDER PACK 1 STORAGE'!$H$95","v":0},{"$f":"'TENDER PACK 1 STORAGE'!$H$96","v":0},{"$f":"'TENDER PACK 1 STORAGE'!$H$97","v":0},{"$f":"'TENDER PACK 1 STORAGE'!$H$98","v":0},{"$f":"'TENDER PACK 1 STORAGE'!$H$100","v":0},{"$f":"'TENDER PACK 1 STORAGE'!$H$101","v":0},{"$f":"IF('TENDER PACK 1 STORAGE'!$Q$102=2,\"Parent Company Guarantee\",IF('TENDER PACK 1 STORAGE'!$Q$102=3,\"Letter of Credit\",IF('TENDER PACK 1 STORAGE'!$Q$102=1,\"Meets Requirements\",\"UNCHECKED\")))","v":"Parent Company Guarantee"},null,{"$f":"'TENDER PACK 1 STORAGE'!$H$112","v":0},{"$f":"'TENDER PACK 1 STORAGE'!$H$114","v":0},{"$f":"IF('TENDER PACK 1 STORAGE'!$Q$117=1,\"STORAGE OPERATOR\",IF('TENDER PACK 1 STORAGE'!$Q$117=2,\"Primary Capacity Holder of Storage\",\"UNCHECKED\"))","v":"Primary Capacity Holder of Storage"},{"$f":"'TENDER PACK 1 STORAGE'!$H$120","v":0},{"$f":"'TENDER PACK 1 STORAGE'!$H$130","v":0},{"$f":"'TENDER PACK 1 STORAGE'!$H$133","v":0},{"$f":"'TENDER PACK 1 STORAGE'!$H$135","v":0},{"$f":"'TENDER PACK 1 STORAGE'!$H$137","v":0},{"$f":"'TENDER PACK 1 STORAGE'!$H$141","v":0},{"$f":"'TENDER PACK 1 STORAGE'!$H$143","v":0},{"$f":"'TENDER PACK 1 STORAGE'!$H$150","v":0},{"$f":"'TENDER PACK 1 STORAGE'!$H$152","v":0},{"$f":"'TENDER PACK 1 STORAGE'!$H$154","v":0},{"$f":"'TENDER PACK 1 STORAGE'!$H$156","v":0},{"$f":"'TENDER PACK 1 STORAGE'!$D$181","v":4},{"$f":"'TENDER PACK 1 STORAGE'!$F$181","v":0},{"$f":"'TENDER PACK 1 STORAGE'!$I$181","v":0},{"$f":"'TENDER PACK 1 STORAGE'!$L$181","v":0},{"$f":"'TENDER PACK 1 STORAGE'!$N$181","v":0}]
[null,null,null,"..",{"$f":"'TENDER PACK 1 STORAGE'!$H$88","v":0},{"$f":"'TENDER PACK 1 STORAGE'!$H$90","v":0},{"$f":"'TENDER PACK 1 STORAGE'!$H$91","v":0},{"$f":"'TENDER PACK 1 STORAGE'!$H$94","v":0},{"$f":"'TENDER PACK 1 STORAGE'!$H$95","v":0},{"$f":"'TENDER PACK 1 STORAGE'!$H$96","v":0},{"$f":"'TENDER PACK 1 STORAGE'!$H$97","v":0},{"$f":"'TENDER PACK 1 STORAGE'!$H$98","v":0},{"$f":"'TENDER PACK 1 STORAGE'!$H$100","v":0},{"$f":"'TENDER PACK 1 STORAGE'!$H$101","v":0},{"$f":"IF('TENDER PACK 1 STORAGE'!$Q$102=2,\"Parent Company Guarantee\",IF('TENDER PACK 1 STORAGE'!$Q$102=3,\"Letter of Credit\",IF('TENDER PACK 1 STORAGE'!$Q$102=1,\"Meets Requirements\",\"UNCHECKED\")))","v":"Parent Company Guarantee"},null,{"$f":"'TENDER PACK 1 STORAGE'!$H$112","v":0},{"$f":"'TENDER PACK 1 STORAGE'!$H$114","v":0},{"$f":"IF('TENDER PACK 1 STORAGE'!$Q$117=1,\"STORAGE OPERATOR\",IF('TENDER PACK 1 STORAGE'!$Q$117=2,\"Primary Capacity Holder of Storage\",\"UNCHECKED\"))","v":"Primary Capacity Holder of Storage"},{"$f":"'TENDER PACK 1 STORAGE'!$H$120","v":0},{"$f":"'TENDER PACK 1 STORAGE'!$H$130","v":0},{"$f":"'TENDER PACK 1 STORAGE'!$H$133","v":0},{"$f":"'TENDER PACK 1 STORAGE'!$H$135","v":0},{"$f":"'TENDER PACK 1 STORAGE'!$H$137","v":0},{"$f":"'TENDER PACK 1 STORAGE'!$H$141","v":0},{"$f":"'TENDER PACK 1 STORAGE'!$H$143","v":0},{"$f":"'TENDER PACK 1 STORAGE'!$H$150","v":0},{"$f":"'TENDER PACK 1 STORAGE'!$H$152","v":0},{"$f":"'TENDER PACK 1 STORAGE'!$H$154","v":0},{"$f":"'TENDER PACK 1 STORAGE'!$H$156","v":0},{"$f":"'TENDER PACK 1 STORAGE'!$D$183","v":5},{"$f":"'TENDER PACK 1 STORAGE'!$F$183","v":0},{"$f":"'TENDER PACK 1 STORAGE'!$I$183","v":0},{"$f":"'TENDER PACK 1 STORAGE'!$L$183","v":0},{"$f":"'TENDER PACK 1 STORAGE'!$N$183","v":0}]
[null,null,null,"..",{"$f":"'TENDER PACK 1 STORAGE'!$H$88","v":0},{"$f":"'TENDER PACK 1 STORAGE'!$H$90","v":0},{"$f":"'TENDER PACK 1 STORAGE'!$H$91","v":0},{"$f":"'TENDER PACK 1 STORAGE'!$H$94","v":0},{"$f":"'TENDER PACK 1 STORAGE'!$H$95","v":0},{"$f":"'TENDER PACK 1 STORAGE'!$H$96","v":0},{"$f":"'TENDER PACK 1 STORAGE'!$H$97","v":0},{"$f":"'TENDER PACK 1 STORAGE'!$H$98","v":0},{"$f":"'TENDER PACK 1 STORAGE'!$H$100","v":0},{"$f":"'TENDER PACK 1 STORAGE'!$H$101","v":0},{"$f":"IF('TENDER PACK 1 STORAGE'!$Q$102=2,\"Parent Company Guarantee\",IF('TENDER PACK 1 STORAGE'!$Q$102=3,\"Letter of Credit\",IF('TENDER PACK 1 STORAGE'!$Q$102=1,\"Meets Requirements\",\"UNCHECKED\")))","v":"Parent Company Guarantee"},null,{"$f":"'TENDER PACK 1 STORAGE'!$H$112","v":0},{"$f":"'TENDER PACK 1 STORAGE'!$H$114","v":0},{"$f":"IF('TENDER PACK 1 STORAGE'!$Q$117=1,\"STORAGE OPERATOR\",IF('TENDER PACK 1 STORAGE'!$Q$117=2,\"Primary Capacity Holder of Storage\",\"UNCHECKED\"))","v":"Primary Capacity Holder of Storage"},{"$f":"'TENDER PACK 1 STORAGE'!$H$120","v":0},{"$f":"'TENDER PACK 1 STORAGE'!$H$130","v":0},{"$f":"'TENDER PACK 1 STORAGE'!$H$133","v":0},{"$f":"'TENDER PACK 1 STORAGE'!$H$135","v":0},{"$f":"'TENDER PACK 1 STORAGE'!$H$137","v":0},{"$f":"'TENDER PACK 1 STORAGE'!$H$141","v":0},{"$f":"'TENDER PACK 1 STORAGE'!$H$143","v":0},{"$f":"'TENDER PACK 1 STORAGE'!$H$150","v":0},{"$f":"'TENDER PACK 1 STORAGE'!$H$152","v":0},{"$f":"'TENDER PACK 1 STORAGE'!$H$154","v":0},{"$f":"'TENDER PACK 1 STORAGE'!$H$156","v":0},{"$f":"'TENDER PACK 1 STORAGE'!$D$185","v":6},{"$f":"'TENDER PACK 1 STORAGE'!$F$185","v":0},{"$f":"'TENDER PACK 1 STORAGE'!$I$185","v":0},{"$f":"'TENDER PACK 1 STORAGE'!$L$185","v":0},{"$f":"'TENDER PACK 1 STORAGE'!$N$185","v":0}]
[null,null,null,"..",{"$f":"'TENDER PACK 1 STORAGE'!$H$88","v":0},{"$f":"'TENDER PACK 1 STORAGE'!$H$90","v":0},{"$f":"'TENDER PACK 1 STORAGE'!$H$91","v":0},{"$f":"'TENDER PACK 1 STORAGE'!$H$94","v":0},{"$f":"'TENDER PACK 1 STORAGE'!$H$95","v":0},{"$f":"'TENDER PACK 1 STORAGE'!$H$96","v":0},{"$f":"'TENDER PACK 1 STORAGE'!$H$97","v":0},{"$f":"'TENDER PACK 1 STORAGE'!$H$98","v":0},{"$f":"'TENDER PACK 1 STORAGE'!$H$100","v":0},{"$f":"'TENDER PACK 1 STORAGE'!$H$101","v":0},{"$f":"IF('TENDER PACK 1 STORAGE'!$Q$102=2,\"Parent Company Guarantee\",IF('TENDER PACK 1 STORAGE'!$Q$102=3,\"Letter of Credit\",IF('TENDER PACK 1 STORAGE'!$Q$102=1,\"Meets Requirements\",\"UNCHECKED\")))","v":"Parent Company Guarantee"},null,{"$f":"'TENDER PACK 1 STORAGE'!$H$112","v":0},{"$f":"'TENDER PACK 1 STORAGE'!$H$114","v":0},{"$f":"IF('TENDER PACK 1 STORAGE'!$Q$117=1,\"STORAGE OPERATOR\",IF('TENDER PACK 1 STORAGE'!$Q$117=2,\"Primary Capacity Holder of Storage\",\"UNCHECKED\"))","v":"Primary Capacity Holder of Storage"},{"$f":"'TENDER PACK 1 STORAGE'!$H$120","v":0},{"$f":"'TENDER PACK 1 STORAGE'!$H$130","v":0},{"$f":"'TENDER PACK 1 STORAGE'!$H$133","v":0},{"$f":"'TENDER PACK 1 STORAGE'!$H$135","v":0},{"$f":"'TENDER PACK 1 STORAGE'!$H$137","v":0},{"$f":"'TENDER PACK 1 STORAGE'!$H$141","v":0},{"$f":"'TENDER PACK 1 STORAGE'!$H$143","v":0},{"$f":"'TENDER PACK 1 STORAGE'!$H$150","v":0},{"$f":"'TENDER PACK 1 STORAGE'!$H$152","v":0},{"$f":"'TENDER PACK 1 STORAGE'!$H$154","v":0},{"$f":"'TENDER PACK 1 STORAGE'!$H$156","v":0},{"$f":"'TENDER PACK 1 STORAGE'!$D$187","v":7},{"$f":"'TENDER PACK 1 STORAGE'!$F$187","v":0},{"$f":"'TENDER PACK 1 STORAGE'!$I$187","v":0},{"$f":"'TENDER PACK 1 STORAGE'!$L$187","v":0},{"$f":"'TENDER PACK 1 STORAGE'!$N$187","v":0}]
[null,null,null,"..",{"$f":"'TENDER PACK 1 STORAGE'!$H$88","v":0},{"$f":"'TENDER PACK 1 STORAGE'!$H$90","v":0},{"$f":"'TENDER PACK 1 STORAGE'!$H$91","v":0},{"$f":"'TENDER PACK 1 STORAGE'!$H$94","v":0},{"$f":"'TENDER PACK 1 STORAGE'!$H$95","v":0},{"$f":"'TENDER PACK 1 STORAGE'!$H$96","v":0},{"$f":"'TENDER PACK 1 STORAGE'!$H$97","v":0},{"$f":"'TENDER PACK 1 STORAGE'!$H$98","v":0},{"$f":"'TENDER PACK 1 STORAGE'!$H$100","v":0},{"$f":"'TENDER PACK 1 STORAGE'!$H$101","v":0},{"$f":"IF('TENDER PACK 1 STORAGE'!$Q$102=2,\"Parent Company Guarantee\",IF('TENDER PACK 1 STORAGE'!$Q$102=3,\"Letter of Credit\",IF('TENDER PACK 1 STORAGE'!$Q$102=1,\"Meets Requirements\",\"UNCHECKED\")))","v":"Parent Company Guarantee"},null,{"$f":"'TENDER PACK 1 STORAGE'!$H$112","v":0},{"$f":"'TENDER PACK 1 STORAGE'!$H$114","v":0},{"$f":"IF('TENDER PACK 1 STORAGE'!$Q$117=1,\"STORAGE OPERATOR\",IF('TENDER PACK 1 STORAGE'!$Q$117=2,\"Primary Capacity Holder of Storage\",\"UNCHECKED\"))","v":"Primary Capacity Holder of Storage"},{"$f":"'TENDER PACK 1 STORAGE'!$H$120","v":0},{"$f":"'TENDER PACK 1 STORAGE'!$H$130","v":0},{"$f":"'TENDER PACK 1 STORAGE'!$H$133","v":0},{"$f":"'TENDER PACK 1 STORAGE'!$H$135","v":0},{"$f":"'TENDER PACK 1 STORAGE'!$H$137","v":0},{"$f":"'TENDER PACK 1 STORAGE'!$H$141","v":0},{"$f":"'TENDER PACK 1 STORAGE'!$H$143","v":0},{"$f":"'TENDER PACK 1 STORAGE'!$H$150","v":0},{"$f":"'TENDER PACK 1 STORAGE'!$H$152","v":0},{"$f":"'TENDER PACK 1 STORAGE'!$H$154","v":0},{"$f":"'TENDER PACK 1 STORAGE'!$H$156","v":0},{"$f":"'TENDER PACK 1 STORAGE'!$D$189","v":8},{"$f":"'TENDER PACK 1 STORAGE'!$F$189","v":0},{"$f":"'TENDER PACK 1 STORAGE'!$I$189","v":0},{"$f":"'TENDER PACK 1 STORAGE'!$L$189","v":0},{"$f":"'TENDER PACK 1 STORAGE'!$N$189","v":0}]
[null,null,null,"..",{"$f":"'TENDER PACK 1 STORAGE'!$H$88","v":0},{"$f":"'TENDER PACK 1 STORAGE'!$H$90","v":0},{"$f":"'TENDER PACK 1 STORAGE'!$H$91","v":0},{"$f":"'TENDER PACK 1 STORAGE'!$H$94","v":0},{"$f":"'TENDER PACK 1 STORAGE'!$H$95","v":0},{"$f":"'TENDER PACK 1 STORAGE'!$H$96","v":0},{"$f":"'TENDER PACK 1 STORAGE'!$H$97","v":0},{"$f":"'TENDER PACK 1 STORAGE'!$H$98","v":0},{"$f":"'TENDER PACK 1 STORAGE'!$H$100","v":0},{"$f":"'TENDER PACK 1 STORAGE'!$H$101","v":0},{"$f":"IF('TENDER PACK 1 STORAGE'!$Q$102=2,\"Parent Company Guarantee\",IF('TENDER PACK 1 STORAGE'!$Q$102=3,\"Letter of Credit\",IF('TENDER PACK 1 STORAGE'!$Q$102=1,\"Meets Requirements\",\"UNCHECKED\")))","v":"Parent Company Guarantee"},null,{"$f":"'TENDER PACK 1 STORAGE'!$H$112","v":0},{"$f":"'TENDER PACK 1 STORAGE'!$H$114","v":0},{"$f":"IF('TENDER PACK 1 STORAGE'!$Q$117=1,\"STORAGE OPERATOR\",IF('TENDER PACK 1 STORAGE'!$Q$117=2,\"Primary Capacity Holder of Storage\",\"UNCHECKED\"))","v":"Primary Capacity Holder of Storage"},{"$f":"'TENDER PACK 1 STORAGE'!$H$120","v":0},{"$f":"'TENDER PACK 1 STORAGE'!$H$130","v":0},{"$f":"'TENDER PACK 1 STORAGE'!$H$133","v":0},{"$f":"'TENDER PACK 1 STORAGE'!$H$135","v":0},{"$f":"'TENDER PACK 1 STORAGE'!$H$137","v":0},{"$f":"'TENDER PACK 1 STORAGE'!$H$141","v":0},{"$f":"'TENDER PACK 1 STORAGE'!$H$143","v":0},{"$f":"'TENDER PACK 1 STORAGE'!$H$150","v":0},{"$f":"'TENDER PACK 1 STORAGE'!$H$152","v":0},{"$f":"'TENDER PACK 1 STORAGE'!$H$154","v":0},{"$f":"'TENDER PACK 1 STORAGE'!$H$156","v":0},{"$f":"'TENDER PACK 1 STORAGE'!$D$191","v":9},{"$f":"'TENDER PACK 1 STORAGE'!$F$191","v":0},{"$f":"'TENDER PACK 1 STORAGE'!$I$191","v":0},{"$f":"'TENDER PACK 1 STORAGE'!$L$191","v":0},{"$f":"'TENDER PACK 1 STORAGE'!$N$191","v":0}]
[null,null,null,"..",{"$f":"'TENDER PACK 1 STORAGE'!$H$88","v":0},{"$f":"'TENDER PACK 1 STORAGE'!$H$90","v":0},{"$f":"'TENDER PACK 1 STORAGE'!$H$91","v":0},{"$f":"'TENDER PACK 1 STORAGE'!$H$94","v":0},{"$f":"'TENDER PACK 1 STORAGE'!$H$95","v":0},{"$f":"'TENDER PACK 1 STORAGE'!$H$96","v":0},{"$f":"'TENDER PACK 1 STORAGE'!$H$97","v":0},{"$f":"'TENDER PACK 1 STORAGE'!$H$98","v":0},{"$f":"'TENDER PACK 1 STORAGE'!$H$100","v":0},{"$f":"'TENDER PACK 1 STORAGE'!$H$101","v":0},{"$f":"IF('TENDER PACK 1 STORAGE'!$Q$102=2,\"Parent Company Guarantee\",IF('TENDER PACK 1 STORAGE'!$Q$102=3,\"Letter of Credit\",IF('TENDER PACK 1 STORAGE'!$Q$102=1,\"Meets Requirements\",\"UNCHECKED\")))","v":"Parent Company Guarantee"},null,{"$f":"'TENDER PACK 1 STORAGE'!$H$112","v":0},{"$f":"'TENDER PACK 1 STORAGE'!$H$114","v":0},{"$f":"IF('TENDER PACK 1 STORAGE'!$Q$117=1,\"STORAGE OPERATOR\",IF('TENDER PACK 1 STORAGE'!$Q$117=2,\"Primary Capacity Holder of Storage\",\"UNCHECKED\"))","v":"Primary Capacity Holder of Storage"},{"$f":"'TENDER PACK 1 STORAGE'!$H$120","v":0},{"$f":"'TENDER PACK 1 STORAGE'!$H$130","v":0},{"$f":"'TENDER PACK 1 STORAGE'!$H$133","v":0},{"$f":"'TENDER PACK 1 STORAGE'!$H$135","v":0},{"$f":"'TENDER PACK 1 STORAGE'!$H$137","v":0},{"$f":"'TENDER PACK 1 STORAGE'!$H$141","v":0},{"$f":"'TENDER PACK 1 STORAGE'!$H$143","v":0},{"$f":"'TENDER PACK 1 STORAGE'!$H$150","v":0},{"$f":"'TENDER PACK 1 STORAGE'!$H$152","v":0},{"$f":"'TENDER PACK 1 STORAGE'!$H$154","v":0},{"$f":"'TENDER PACK 1 STORAGE'!$H$156","v":0},{"$f":"'TENDER PACK 1 STORAGE'!$D$193","v":10},{"$f":"'TENDER PACK 1 STORAGE'!$F$193","v":0},{"$f":"'TENDER PACK 1 STORAGE'!$I$193","v":0},{"$f":"'TENDER PACK 1 STORAGE'!$L$193","v":0},{"$f":"'TENDER PACK 1 STORAGE'!$N$193","v":0}]